bitfinex-derivatives/quotes_BTCF0:USTF0_20210707
["timestamp","ask_amount","ask_price","bid_price","bid_amount"]
[1625669487609,0.08346815,34614.0,34612.0,0.45624544]
[1625669488870,0.08345834,34613.0,34612.0,0.45624544]
[1625669489230,0.08345834,34613.0,34612.0,0.461214]
[1625669489893,0.25024972,34614.0,34612.0,0.461214]
[1625669490195,0.25024972,34614.0,34613.0,0.00496849]
[1625669490375,0.08346927,34614.0,34613.0,0.00496849]
[1625669490915,0.25022987,34614.0,34613.0,0.00496849]
[1625669491156,0.08346927,34614.0,34613.0,0.00496849]
[1625669492177,0.25031904,34615.0,34613.0,0.00496849]
[1625669492416,0.08349364,34614.0,34613.0,0.00496849]
[1625669492536,0.25032383,34615.0,34613.0,0.00496849]
[1625669493077,0.0835016,34615.0,34613.0,0.00496849]
[1625669493259,0.0835016,34615.0,34614.0,3.739]
[1625669493437,0.24057544,34616.0,34614.0,3.739]
[1625669493558,0.08351713,34615.0,34614.0,3.739]
[1625669494037,0.08351713,34615.0,34614.0,3.74396815]
[1625669494581,0.32411986,34616.0,34614.0,3.74396815]
[1625669495063,0.24057544,34616.0,34615.0,0.00496788]
[1625669495961,0.24057544,34616.0,34615.0,0.24554332]
[1625669496200,0.08359188,34617.0,34615.0,0.24554332]
[1625669496503,0.25079308,34620.0,34615.0,0.24554332]
[1625669496743,0.25079308,34620.0,34616.0,0.00496747]
[1625669497888,0.25079308,34620.0,34619.0,0.24057544]
[1625669498008,0.25079308,34620.0,34619.0,0.46856544]
[1625669498429,0.25079308,34620.0,34619.0,0.47353284]
[1625669499211,0.26389161,34620.0,34619.0,0.47353284]
[1625669499331,0.01309853,34620.0,34619.0,0.47353284]
[1625669499812,1.01649585,34621.0,34619.0,0.47353284]
[1625669500052,0.01309868,34620.0,34619.0,0.47353284]
[1625669500292,0.01309868,34620.0,34619.0,0.46856544]
[1625669500593,0.01309868,34620.0,34619.0,0.47353323]
[1625669500833,1.01630693,34620.0,34619.0,0.47353323]
[1625669501312,0.01309868,34620.0,34619.0,0.47353323]
[1625669501973,0.25367412,34620.0,34619.0,0.47353323]
[1625669502094,1.25667335,34620.0,34619.0,0.24554323]
[1625669502213,1.25667335,34620.0,34619.0,0.24057544]
[1625669502753,2.42653803,34620.0,34619.0,0.24057544]
[1625669503413,1.25667335,34620.0,34619.0,0.24057544]
[1625669503715,2.42694363,34620.0,34619.0,0.24057544]
[1625669503894,1.25667335,34620.0,34619.0,0.24057544]
[1625669505336,0.25367412,34620.0,34619.0,0.24554349]
[1625669505455,0.25367412,34620.0,34619.0,0.56441349]
[1625669506718,0.24057544,34620.0,34619.0,0.56441349]
[1625669507799,0.25367421,34620.0,34619.0,0.56441349]
[1625669508040,0.24057544,34620.0,34619.0,0.56441349]
[1625669508580,0.25367342,34620.0,34619.0,0.56441349]
[1625669509363,1.25846412,34620.0,34619.0,0.56441349]
[1625669511289,1.25846412,34620.0,34619.0,0.55944544]
[1625669511471,1.25846412,34620.0,34619.0,0.56441405]
[1625669511773,1.25846412,34620.0,34619.0,0.55944544]
[1625669512858,1.25846412,34620.0,34619.0,0.56441403]
[1625669513335,2.43142491,34620.0,34619.0,0.56441403]
[1625669513876,2.43142491,34620.0,34619.0,0.55944544]
[1625669514477,2.43142491,34620.0,34619.0,0.56441396]
[1625669517124,3.7742563,34620.0,34619.0,0.56441396]
[1625669518266,2.43142491,34620.0,34619.0,0.56441396]
[1625669518750,3.77460639,34620.0,34619.0,0.56441396]
[1625669518928,2.43142491,34620.0,34619.0,0.56441396]
[1625669519169,3.77594933,34620.0,34619.0,0.56441396]
[1625669521454,3.77594933,34620.0,34619.0,0.81877479]
[1625669522177,4.44916677,34620.0,34619.0,0.81877479]
[1625669522357,4.44916677,34620.0,34619.0,0.56441396]
[1625669522358,5.96344967,34620.0,34619.0,0.56441396]
[1625669523197,5.96344967,34620.0,34619.0,0.24554396]
[1625669525000,5.96344967,34620.0,34615.0,1.49865457]
[1625669525001,6.17865967,34620.0,34611.0,1.35719252]
[1625669525120,6.17865967,34620.0,34612.0,1.35718784]
[1625669525420,1.51355209,34616.0,34614.0,0.00496262]
[1625669525722,7.87169628,34615.0,34614.0,0.00496262]
[1625669525901,7.88480959,34615.0,34611.0,0.00496308]
[1625669526078,0.48115088,34612.0,34609.0,1.18819472]
[1625669526200,0.48115088,34612.0,34605.0,1.22927544]
[1625669526201,4.74231333,34612.0,34606.0,1.18829863]
[1625669526444,1.17670221,34607.0,34606.0,1.18829863]
[1625669526801,2.52117049,34607.0,34606.0,1.18829863]
[1625669526920,2.53428408,34607.0,34606.0,1.19326186]
[1625669527040,1.1898158,34607.0,34606.0,1.19326186]
[1625669527162,1.17670221,34607.0,34606.0,1.19326186]
[1625669527643,2.52192102,34607.0,34606.0,1.19326186]
[1625669527883,1.17670221,34607.0,34606.0,1.19326186]
[1625669528061,1.41727765,34607.0,34606.0,1.19326186]
[1625669528904,1.41727765,34607.0,34606.0,2.55171115]
[1625669529024,1.41727765,34607.0,34606.0,1.19326186]
[1625669529744,1.41727765,34607.0,34606.0,2.55166455]
[1625669530466,0.24057544,34607.0,34606.0,2.55166455]
[1625669531486,0.24057544,34607.0,34606.0,4.07973417]
[1625669532206,0.24057544,34607.0,34606.0,4.32532417]
[1625669534128,0.24057544,34612.0,34606.0,4.56589961]
[1625669534491,0.24057544,34612.0,34611.0,2.54675619]
[1625669534787,0.24057544,34612.0,34611.0,7.44592152]
[1625669536110,0.24057544,34612.0,34611.0,7.68649696]
[1625669541104,0.24057544,34612.0,34611.0,7.68153163]
[1625669546872,0.24057544,34612.0,34611.0,7.76873163]
[1625669547354,0.24057544,34612.0,34611.0,7.68153163]
[1625669547474,0.24057544,34612.0,34611.0,9.20982364]
[1625669548136,0.24057544,34612.0,34611.0,7.68153163]
[1625669548315,0.24057544,34612.0,34611.0,7.76723163]
[1625669549577,0.24057544,34612.0,34611.0,9.29561093]
[1625669550479,0.24057544,34612.0,34611.0,9.20991093]
[1625669551801,0.74587612,34612.0,34611.0,9.71939122]
[1625669552463,0.74587612,34612.0,34611.0,9.80599122]
[1625669552883,0.74587612,34612.0,34611.0,9.71939122]
[1625669553965,0.74587612,34612.0,34611.0,9.80539122]
[1625669554447,0.74587612,34612.0,34611.0,9.71939122]
[1625669555106,0.74587612,34612.0,34611.0,10.73835071]
[1625669555468,0.74587612,34612.0,34611.0,10.82385071]
[1625669557513,0.24057544,34612.0,34611.0,10.82385071]
[1625669559197,0.24057544,34613.0,34611.0,10.85535071]
[1625669559556,0.24057544,34613.0,34612.0,5.60327775]
[1625669559677,0.24057544,34613.0,34612.0,5.608239]
[1625669560277,0.24057544,34613.0,34612.0,7.54638906]
[1625669560878,0.74663693,34618.0,34612.0,7.54638906]
[1625669560999,0.31806149,34618.0,34612.0,7.54638906]
[1625669561239,1.01261272,34623.0,34617.0,5.09204212]
[1625669561364,1.01261272,34623.0,34618.0,0.0867]
[1625669561482,1.01261272,34623.0,34622.0,7.83789837]
[1625669561779,0.54057544,34626.0,34622.0,7.83789837]
[1625669561780,1.01233721,34624.0,34622.0,7.83789837]
[1625669562021,1.01233721,34624.0,34623.0,3.56215637]
[1625669562320,1.01233721,34624.0,34623.0,4.28884251]
[1625669563643,1.01233721,34624.0,34623.0,4.37484251]
[1625669563942,1.01200401,34625.0,34623.0,4.37484251]
[1625669564182,1.01200401,34625.0,34624.0,3.56049729]
[1625669564301,1.01200401,34625.0,34624.0,3.80536711]
[1625669564724,1.01200401,34625.0,34624.0,2.44898719]
[1625669566284,1.01200401,34625.0,34624.0,1.26215476]
[1625669566825,2.19163928,34625.0,34624.0,1.02224476]
[1625669569589,2.19163928,34625.0,34624.0,1.24200476]
[1625669569710,1.01200401,34625.0,34624.0,1.24200476]
[1625669569890,2.1912046,34625.0,34624.0,1.24200476]
[1625669570611,1.01200401,34625.0,34624.0,1.24200476]
[1625669570851,2.19198626,34625.0,34624.0,0.22471982]
[1625669571031,2.19198626,34625.0,34624.0,0.21976]
[1625669571633,2.19198626,34625.0,34624.0,1.24121133]
[1625669572111,1.01200401,34625.0,34624.0,1.24121133]
[1625669573973,1.55232027,34626.0,34624.0,1.24121133]
[1625669574153,1.55232027,34626.0,34625.0,1.01610356]
[1625669574336,1.55232027,34626.0,34625.0,1.02106306]
[1625669575840,0.54057544,34626.0,34625.0,1.02106306]
[1625669578840,1.55237391,34626.0,34625.0,0.0049595]
[1625669579323,2.73225827,34626.0,34625.0,0.0049595]
[1625669579502,3.01009827,34626.0,34625.0,0.0049595]
[1625669579624,3.01009827,34626.0,34624.0,0.00496004]
[1625669579802,2.19061392,34625.0,34624.0,0.00496004]
[1625669580104,1.01106554,34625.0,34624.0,0.00496004]
[1625669581246,1.55255684,34626.0,34624.0,1.02062561]
[1625669581484,1.55255684,34626.0,34625.0,0.00495972]
[1625669582446,1.55255684,34626.0,34625.0,1.25616313]
[1625669582625,1.55255684,34626.0,34625.0,0.27185797]
[1625669582747,1.55255684,34626.0,34625.0,0.15505797]
[1625669582872,4.09824917,34626.0,34623.0,0.33855805]
[1625669582987,4.37714917,34626.0,34623.0,0.33855805]
[1625669583228,2.52883442,34624.0,34619.0,0.33858252]
[1625669583469,1.17978211,34620.0,34618.0,0.33861004]
[1625669583710,1.17946307,34619.0,34617.0,0.3386106]
[1625669583828,1.39311307,34619.0,34617.0,0.3386106]
[1625669584129,1.17908657,34618.0,34616.0,0.33862502]
[1625669584308,2.52636284,34618.0,34615.0,0.33862938]
[1625669584429,0.72172632,34616.0,34615.0,0.33862938]
[1625669584550,3.24550239,34616.0,34612.0,0.33866581]
[1625669584789,1.17789302,34614.0,34612.0,0.33866581]
[1625669585029,1.34613942,34615.0,34613.0,0.00496005]
[1625669585270,1.85068711,34614.0,34613.0,0.00496005]
[1625669585749,3.20974236,34614.0,34613.0,0.00496005]
[1625669585988,3.20974236,34614.0,34612.0,0.00496007]
[1625669586231,1.85020626,34613.0,34612.0,0.00496007]
[1625669586833,1.85020626,34613.0,34611.0,0.33867131]
[1625669586955,0.67272562,34612.0,34611.0,0.33867131]
[1625669587676,1.85016885,34612.0,34611.0,0.33867131]
[1625669588217,0.67272562,34612.0,34611.0,0.68252194]
[1625669588457,0.91330106,34612.0,34611.0,0.68252194]
[1625669589483,0.24057544,34612.0,34611.0,1.86817295]
[1625669589723,0.24057544,34612.0,34611.0,3.22357047]
[1625669591352,0.57760961,34612.0,34611.0,1.86817295]
[1625669591894,0.91429442,34612.0,34611.0,1.86817295]
[1625669592131,0.91429442,34612.0,34611.0,0.68252194]
[1625669593450,0.91429442,34612.0,34611.0,1.86861242]
[1625669593874,0.57761634,34612.0,34611.0,1.86861242]
[1625669595076,0.57761634,34612.0,34611.0,3.22413968]
[1625669595795,0.91426357,34612.0,34611.0,1.86861242]
[1625669596336,0.91426357,34612.0,34611.0,0.67756188]
[1625669596456,1.25017357,34612.0,34611.0,0.67756188]
[1625669596577,2.42792465,34612.0,34611.0,0.67756188]
[1625669596818,2.42792465,34612.0,34611.0,0.33887607]
[1625669599523,2.42792465,34612.0,34610.0,0.33882789]
[1625669599821,1.85020364,34611.0,34610.0,0.33882789]
[1625669600062,0.67284719,34611.0,34610.0,0.33882789]
[1625669600245,1.85103683,34611.0,34609.0,4.2912154]
[1625669600422,0.24057544,34610.0,34609.0,4.2912154]
[1625669600544,0.91384354,34610.0,34609.0,4.2912154]
[1625669601687,0.24057544,34610.0,34609.0,4.2912154]
[1625669601991,0.57748852,34610.0,34609.0,5.47678036]
[1625669603428,0.24057544,34610.0,34609.0,4.2912154]
[1625669604029,0.57737484,34610.0,34609.0,4.2912154]
[1625669604688,0.57737484,34610.0,34609.0,4.29617481]
[1625669604928,0.57737484,34610.0,34609.0,4.2912154]
[1625669605229,0.57737484,34610.0,34609.0,4.29617479]
[1625669605768,0.57737484,34610.0,34609.0,4.2912154]
[1625669605949,0.9136611,34610.0,34609.0,4.2912154]
[1625669606434,0.9136611,34610.0,34609.0,3.6136]
[1625669607090,0.9136611,34610.0,34609.0,3.61855982]
[1625669607329,0.9136611,34610.0,34609.0,3.95722125]
[1625669607571,0.9136611,34610.0,34609.0,3.61855982]
[1625669607750,1.1814611,34610.0,34609.0,3.61855982]
[1625669607932,1.1814611,34610.0,34609.0,3.95719347]
[1625669608056,1.1814611,34610.0,34609.0,3.61855982]
[1625669608351,2.35887331,34610.0,34609.0,3.61855982]
[1625669608531,2.35887331,34610.0,34609.0,3.6136]
[1625669609736,2.37199691,34610.0,34609.0,3.61856186]
[1625669612257,2.37199691,34610.0,34609.0,0.00496186]
[1625669612562,2.37199691,34610.0,34605.0,0.33844584]
[1625669612681,0.6717511,34606.0,34605.0,0.33844584]
[1625669612921,0.6717511,34606.0,34604.0,0.33845381]
[1625669612922,1.67912537,34606.0,34604.0,0.33845381]
[1625669613042,1.67912537,34606.0,34605.0,0.00496203]
[1625669613701,0.6717511,34606.0,34605.0,0.34341081]
[1625669614483,0.67176033,34607.0,34605.0,0.34341081]
[1625669614600,0.24057544,34606.0,34605.0,0.34341081]
[1625669614843,0.57656681,34606.0,34605.0,0.00496203]
[1625669615563,0.91225644,34606.0,34605.0,0.34331593]
[1625669616102,0.24057544,34606.0,34605.0,0.34331593]
[1625669616527,0.91243162,34606.0,34605.0,0.00496203]
[1625669619468,0.24057544,34606.0,34605.0,0.34315794]
[1625669619769,0.57759032,34606.0,34605.0,0.34315794]
[1625669619891,0.91443174,34606.0,34605.0,0.00496203]
[1625669621279,0.24057544,34606.0,34605.0,0.00496203]
[1625669621819,0.24057544,34606.0,34605.0,0.34314647]
[1625669622061,0.24057544,34606.0,34605.0,0.00496203]
[1625669622243,0.91627511,34606.0,34605.0,0.00496203]
[1625669623448,0.57857401,34606.0,34605.0,0.34312957]
[1625669624224,0.24057544,34606.0,34605.0,0.34312957]
[1625669624344,0.91633563,34606.0,34605.0,0.34312957]
[1625669624587,0.91633563,34606.0,34605.0,0.00496203]
[1625669625786,1.92880554,34606.0,34605.0,0.00496203]
[1625669626445,1.92880554,34606.0,34604.0,0.00496226]
[1625669626686,0.67472199,34605.0,34604.0,0.00496226]
[1625669627588,0.67472199,34605.0,34604.0,0.34326155]
[1625669629454,0.33723068,34605.0,34604.0,0.34326155]
[1625669629815,0.67428971,34605.0,34604.0,0.00496226]
[1625669630053,0.67428971,34605.0,34604.0,0.34331291]
[1625669630957,0.67428971,34605.0,34604.0,0.00496226]
[1625669631198,1.6853582,34605.0,34604.0,0.00496226]
[1625669631738,2.87767164,34605.0,34604.0,0.00496226]
[1625669632159,2.87767164,34605.0,34601.0,0.33843934]
[1625669632280,0.01312816,34605.0,34598.0,0.9607]
[1625669632459,0.33356914,34604.0,34598.0,0.9607]
[1625669632581,2.16366574,34599.0,34597.0,0.33848242]
[1625669632700,4.5943,34598.0,34597.0,0.33848242]
[1625669632820,4.5943,34598.0,34596.0,0.24057544]
[1625669632821,6.27533175,34598.0,34596.0,0.24057544]
[1625669633061,1.68090245,34597.0,34596.0,0.24057544]
[1625669633183,1.95314245,34597.0,34596.0,0.24057544]
[1625669633845,3.12948336,34597.0,34596.0,0.24057544]
[1625669634986,3.12948336,34597.0,34592.0,0.33838674]
[1625669635228,0.67172046,34594.0,34592.0,0.33838674]
[1625669635410,0.67172046,34594.0,34593.0,0.0049619]
[1625669635650,1.67969769,34594.0,34592.0,0.33856198]
[1625669635890,1.67969769,34594.0,34590.0,1.01568561]
[1625669636075,1.17212711,34593.0,34590.0,0.03958561]
[1625669636201,1.17212711,34593.0,34580.0,0.67728001]
[1625669636202,5.69694707,34591.0,34580.0,0.67728001]
[1625669636433,1.17161945,34581.0,34573.0,2.1713328]
[1625669636553,1.49991945,34581.0,34573.0,2.1713328]
[1625669636676,0.96230176,34574.0,34573.0,2.1713328]
[1625669636792,1.21672176,34574.0,34573.0,0.9859]
[1625669637271,1.21672176,34574.0,34565.0,1.18346707]
[1625669637394,1.21672176,34574.0,34563.0,1.18354187]
[1625669637635,1.1657963,34571.0,34558.0,1.18368922]
[1625669637873,1.16606559,34569.0,34563.0,4.1036]
[1625669638352,1.16733809,34573.0,34563.0,4.1036]
[1625669638718,0.48115088,34564.0,34563.0,4.1036]
[1625669639676,0.24057544,34574.0,34563.0,4.1036]
[1625669639798,0.24057544,34574.0,34563.0,5.5042276]
[1625669640096,0.24057544,34574.0,34565.0,1.18186297]
[1625669640217,0.06757544,34574.0,34565.0,1.18186297]
[1625669640338,0.06757544,34574.0,34566.0,1.18184609]
[1625669640638,0.06757544,34574.0,34563.0,4.32233]
[1625669640639,0.06757544,34574.0,34573.0,0.48115088]
[1625669640758,0.06757544,34574.0,34573.0,0.81412088]
[1625669641358,0.06757544,34574.0,34573.0,4.82632088]
[1625669642682,0.24057544,34579.0,34573.0,4.82632088]
[1625669644123,0.24057544,34582.0,34573.0,4.82632088]
[1625669644723,0.24057544,34582.0,34581.0,0.48115088]
[1625669644843,0.24057544,34582.0,34581.0,0.70696088]
[1625669650673,0.24057544,34582.0,34581.0,5.30126088]
[1625669656147,0.24057544,34582.0,34581.0,0.48115088]
[1625669656447,0.24057544,34582.0,34573.0,4.49335088]
[1625669656987,0.24057544,34582.0,34578.0,0.24057544]
[1625669659034,0.58166544,34579.0,34578.0,0.24057544]
[1625669660955,0.58166544,34579.0,34573.0,0.48115088]
[1625669663003,0.24057544,34574.0,34573.0,0.48115088]
[1625669665172,0.24057544,34574.0,34568.0,0.24057544]
[1625669665649,5.0248,34569.0,34568.0,0.24057544]
[1625669665830,5.35869,34569.0,34568.0,0.24057544]
[1625669665948,5.35869,34569.0,34568.0,0.24552606]
[1625669666189,5.35869,34569.0,34568.0,0.24057544]
[1625669667034,5.59926544,34569.0,34568.0,0.24057544]
[1625669667934,0.57446544,34569.0,34568.0,0.24057544]
[1625669668114,0.24057544,34569.0,34568.0,0.24057544]
[1625669668415,0.24057544,34569.0,34568.0,0.24552611]
[1625669669735,0.24057544,34569.0,34568.0,0.24057544]
[1625669672076,0.24057544,34569.0,34566.0,0.9483]
[1625669672619,0.24057544,34569.0,34564.0,1.19187544]
[1625669672919,0.24057544,34569.0,34564.0,0.9513]
[1625669673038,0.48115088,34565.0,34564.0,0.9513]
[1625669679112,0.48115088,34565.0,34564.0,1.43245088]
[1625669682234,4.68755088,34565.0,34564.0,1.43245088]
[1625669683736,4.68755088,34565.0,34564.0,1.43741465]
[1625669687888,0.48115088,34565.0,34564.0,1.43741465]
[1625669690472,0.64750676,34565.0,34564.0,1.43741465]
[1625669691556,0.64750676,34565.0,34564.0,0.95626377]
[1625669691676,0.97973894,34565.0,34564.0,0.95626377]
[1625669691796,0.99289786,34565.0,34564.0,0.9513]
[1625669692098,3.15135238,34565.0,34564.0,0.9513]
[1625669692459,4.47867262,34565.0,34564.0,0.9513]
[1625669692639,4.47867262,34565.0,34555.0,0.16918359]
[1625669692820,0.4976199,34556.0,34552.0,0.16929304]
[1625669692939,0.7142599,34556.0,34552.0,0.16929304]
[1625669693057,0.1659128,34553.0,34550.0,0.16929957]
[1625669693236,0.96230176,34551.0,34550.0,0.16929957]
[1625669693478,4.88670176,34551.0,34550.0,0.16929957]
[1625669693657,5.38370959,34551.0,34550.0,0.00496075]
[1625669694018,5.38370959,34551.0,34549.0,0.9761]
[1625669694138,5.38370959,34551.0,34550.0,0.00496048]
[1625669694440,5.38370959,34551.0,34549.0,0.9761]
[1625669694677,0.49674264,34550.0,34549.0,0.9761]
[1625669694921,0.16573991,34550.0,34549.0,0.9761]
[1625669695039,0.16573991,34550.0,34549.0,0.98106057]
[1625669695580,1.12808023,34551.0,34549.0,0.98106057]
[1625669695818,0.16573678,34550.0,34549.0,0.9761]
[1625669696119,1.45918096,34551.0,34549.0,0.9761]
[1625669696120,0.96230176,34551.0,34549.0,1.14539332]
[1625669696363,0.96230176,34551.0,34549.0,1.15035381]
[1625669696544,0.96230176,34551.0,34550.0,0.00496035]
[1625669696789,0.96230176,34551.0,34550.0,0.17414867]
[1625669696906,0.24057544,34551.0,34550.0,0.17414867]
[1625669697087,0.24057544,34551.0,34550.0,0.51251568]
[1625669697205,0.24057544,34551.0,34550.0,0.99366656]
[1625669697325,0.24057544,34551.0,34550.0,1.67039538]
[1625669697626,0.24057544,34551.0,34550.0,2.68548087]
[1625669698049,0.24057544,34551.0,34550.0,3.86970226]
[1625669698769,0.90413186,34560.0,34550.0,3.86970226]
[1625669698886,0.40657065,34560.0,34550.0,3.86970226]
[1625669699006,0.40657065,34560.0,34556.0,0.16911923]
[1625669699185,0.40657065,34560.0,34556.0,0.40924923]
[1625669699309,0.24057544,34560.0,34559.0,0.48115088]
[1625669700208,0.24057544,34560.0,34559.0,0.6502609]
[1625669700388,0.24057544,34560.0,34559.0,0.65522013]
[1625669700631,0.24057544,34560.0,34559.0,0.6502609]
[1625669700808,0.24057544,34560.0,34559.0,0.48611011]
[1625669700933,0.24057544,34560.0,34559.0,0.65522663]
[1625669701650,0.24057544,34560.0,34559.0,0.6502674]
[1625669702071,0.24057544,34560.0,34559.0,0.48115088]
[1625669702492,0.40663845,34560.0,34559.0,0.48616027]
[1625669702795,0.24057544,34560.0,34559.0,0.48616027]
[1625669703273,0.24057544,34560.0,34559.0,0.48115088]
[1625669703515,0.40661824,34560.0,34559.0,0.48115088]
[1625669704118,0.40661824,34560.0,34559.0,0.24057544]
[1625669704597,0.40661824,34560.0,34556.0,0.16912615]
[1625669705198,0.08308823,34559.0,34557.0,0.00500962]
[1625669705317,0.24057544,34558.0,34557.0,0.00500962]
[1625669705682,0.24057544,34558.0,34556.0,0.25369675]
[1625669706339,0.24057544,34558.0,34557.0,0.08459064]
[1625669706462,0.24057544,34558.0,34557.0,0.36911024]
[1625669706883,0.24057544,34558.0,34557.0,0.53828934]
[1625669707428,1.40105516,34558.0,34557.0,0.2845196]
[1625669707546,1.40105516,34558.0,34554.0,0.08459602]
[1625669707727,2.63860512,34558.0,34552.0,0.08460015]
[1625669707845,0.08298435,34554.0,34551.0,0.2538013]
[1625669708328,0.08298435,34554.0,34552.0,0.00501029]
[1625669708508,0.2487795,34555.0,34552.0,0.08959399]
[1625669708629,0.24878303,34554.0,34552.0,0.0845837]
[1625669708748,0.24878303,34554.0,34551.0,0.2538022]
[1625669708867,0.08298289,34554.0,34551.0,0.2538022]
[1625669709289,0.24057544,34552.0,34551.0,0.2538022]
[1625669709648,0.24057544,34552.0,34551.0,0.1742037]
[1625669710309,0.24057544,34552.0,34551.0,0.0050034]
[1625669710852,0.24057544,34552.0,34551.0,0.51267602]
[1625669714036,0.24057544,34552.0,34551.0,1.18974501]
[1625669714338,0.24057544,34552.0,34551.0,0.51267602]
[1625669714578,0.24057544,34552.0,34551.0,1.18998743]
[1625669715541,0.24057544,34552.0,34551.0,0.51267602]
[1625669716082,0.24057544,34552.0,34551.0,1.18994426]
[1625669716321,0.24057544,34552.0,34551.0,3.39171513]
[1625669716862,0.08291303,34556.0,34551.0,3.39171513]
[1625669717104,0.08295695,34558.0,34555.0,2.20170704]
[1625669717284,0.08295695,34558.0,34555.0,2.45078704]
[1625669717404,0.08295695,34558.0,34557.0,0.48115088]
[1625669717644,0.08296929,34559.0,34557.0,1.66662671]
[1625669717884,0.24873342,34560.0,34558.0,0.50805886]
[1625669718064,0.24873342,34560.0,34558.0,0.51306196]
[1625669718185,0.24873342,34560.0,34559.0,0.25403118]
[1625669718366,0.08296044,34560.0,34559.0,1.19103609]
[1625669718666,0.24880612,34560.0,34559.0,0.51330292]
[1625669718849,0.24880612,34560.0,34559.0,1.19103194]
[1625669719087,0.08296044,34560.0,34559.0,1.19103194]
[1625669719329,0.2488162,34560.0,34559.0,1.19103194]
[1625669719629,0.08296044,34560.0,34559.0,1.19103194]
[1625669720115,0.24874578,34560.0,34559.0,1.19103194]
[1625669721079,0.49674726,34560.0,34559.0,0.51330292]
[1625669721376,0.7373227,34560.0,34559.0,0.51330292]
[1625669721978,1.39964657,34560.0,34559.0,0.00500304]
[1625669722217,1.39964657,34560.0,34559.0,0.17451763]
[1625669722579,1.39964657,34560.0,34559.0,0.51368342]
[1625669723239,1.39964657,34560.0,34559.0,0.76802288]
[1625669723357,1.39964657,34560.0,34559.0,0.2593425]
[1625669723482,2.39284075,34560.0,34559.0,0.2593425]
[1625669724501,2.39284075,34560.0,34559.0,0.51385338]
[1625669724680,0.7373227,34560.0,34559.0,2.20998581]
[1625669724922,0.48946797,34560.0,34559.0,2.20998581]
[1625669725820,0.40644856,34560.0,34559.0,2.20998581]
[1625669726307,0.48967243,34560.0,34559.0,3.39744225]
[1625669726904,0.48967243,34560.0,34559.0,2.20998581]
[1625669727565,0.40644856,34560.0,34559.0,2.20998581]
[1625669727805,0.24057544,34560.0,34559.0,2.20998581]
[1625669727984,0.73900488,34560.0,34559.0,2.20998581]
[1625669728527,0.49012212,34560.0,34559.0,3.39767491]
[1625669728768,0.40688451,34560.0,34559.0,2.20998581]
[1625669729008,0.40688451,34560.0,34559.0,3.39767078]
[1625669729247,2.40005758,34560.0,34559.0,1.19230635]
[1625669729487,1.40343739,34560.0,34559.0,1.19230635]
[1625669729787,2.39996727,34560.0,34559.0,1.19230635]
[1625669730027,2.39996727,34560.0,34559.0,0.51385338]
[1625669730568,2.39996727,34560.0,34559.0,1.19268997]
[1625669732852,1.40343739,34560.0,34559.0,2.2110862]
[1625669734055,2.39936242,34560.0,34559.0,1.19268997]
[1625669735194,2.68843242,34560.0,34559.0,1.19268997]
[1625669735313,2.68843242,34560.0,34559.0,0.51385338]
[1625669735495,3.84966304,34560.0,34559.0,0.51385338]
[1625669735973,3.84966304,34560.0,34559.0,0.00500304]
[1625669736215,3.84966304,34560.0,34559.0,0.08987814]
[1625669736455,5.17591757,34560.0,34559.0,0.00500304]
[1625669736937,5.17591757,34560.0,34558.0,0.00499996]
[1625669737177,0.52964544,34560.0,34559.0,0.00499996]
[1625669737478,5.17540261,34560.0,34558.0,0.00499987]
[1625669737717,0.52964544,34560.0,34559.0,0.00499987]
[1625669738018,5.17556638,34560.0,34559.0,0.00499987]
[1625669738198,5.17556638,34560.0,34558.0,0.08988106]
[1625669738561,4.64639902,34559.0,34558.0,0.08488112]
[1625669739041,4.64639902,34559.0,34558.0,0.08988101]
[1625669740482,4.64639902,34559.0,34558.0,0.25969395]
[1625669741506,3.31892755,34559.0,34558.0,0.17481283]
[1625669742708,4.6450448,34559.0,34558.0,0.25973283]
[1625669742949,4.6450448,34559.0,34558.0,0.08991989]
[1625669743612,4.6450448,34559.0,34558.0,0.25975881]
[1625669744333,4.6450448,34559.0,34558.0,0.17483881]
[1625669744516,4.6450448,34559.0,34558.0,0.67946447]
[1625669744692,4.6450448,34559.0,34558.0,0.50962555]
[1625669744811,3.31892755,34559.0,34558.0,0.51462515]
[1625669745052,4.64598249,34559.0,34558.0,0.17487431]
[1625669745231,4.64598249,34559.0,34558.0,0.0049996]
[1625669745533,4.64598249,34559.0,34558.0,0.17487443]
[1625669746676,4.64598249,34559.0,34558.0,0.51475645]
[1625669748301,4.64598249,34559.0,34558.0,1.19446587]
[1625669750162,4.64598249,34559.0,34558.0,2.21441403]
[1625669750887,2.15736927,34559.0,34558.0,3.4044261]
[1625669751125,2.15736927,34559.0,34558.0,4.76443225]
[1625669751247,1.97436927,34559.0,34558.0,4.76443225]
[1625669751366,0.3149055,34559.0,34558.0,4.76443225]
[1625669751665,0.3149055,34559.0,34558.0,5.00500769]
[1625669752090,0.16698994,34559.0,34558.0,5.00500769]
[1625669752569,0.2505655,34559.0,34558.0,5.00500769]
[1625669752809,0.2005655,34559.0,34558.0,5.00500769]
[1625669753529,0.2005655,34559.0,34558.0,5.00000809]
[1625669753650,0.2005655,34559.0,34558.0,5.00500531]
[1625669754736,0.11698994,34559.0,34558.0,5.00500531]
[1625669756058,0.45157759,34559.0,34558.0,5.00500531]
[1625669757984,0.33458765,34559.0,34558.0,5.00500531]
[1625669758225,0.66887671,34560.0,34558.0,5.00500531]
[1625669758466,0.66887671,34560.0,34559.0,4.24981552]
[1625669758707,0.66887671,34560.0,34559.0,4.2548127]
[1625669758947,0.33448564,34560.0,34559.0,4.2548127]
[1625669759730,0.33448564,34560.0,34559.0,4.49538814]
[1625669760930,0.66887632,34561.0,34559.0,4.49538814]
[1625669761171,0.66887632,34561.0,34560.0,4.24936081]
[1625669761473,0.66887632,34561.0,34560.0,4.25435803]
[1625669764061,1.67012401,34561.0,34560.0,4.25435803]
[1625669764661,1.67012401,34561.0,34560.0,4.50518803]
[1625669764843,0.66887632,34561.0,34560.0,4.50518803]
[1625669765084,0.41754014,34561.0,34560.0,4.50518803]
[1625669765383,0.08360816,34561.0,34560.0,4.50518803]
[1625669767187,0.41735391,34562.0,34560.0,4.50518803]
[1625669767426,0.41735391,34562.0,34561.0,4.24774076]
[1625669767668,0.41735391,34562.0,34561.0,4.25274169]
[1625669767967,0.4779736,34564.0,34561.0,4.25274169]
[1625669768148,0.4779736,34564.0,34563.0,3.56841402]
[1625669768568,0.4779736,34564.0,34563.0,3.57341498]
[1625669768869,0.4779736,34564.0,34563.0,2.21401916]
[1625669769771,0.4779736,34564.0,34563.0,2.4545946]
[1625669770492,0.4279736,34564.0,34563.0,2.4545946]
[1625669770976,1.42445516,34564.0,34563.0,2.4545946]
[1625669771694,0.4279736,34564.0,34563.0,2.4545946]
[1625669772174,0.4279736,34564.0,34563.0,3.81391686]
[1625669772897,0.4279736,34564.0,34563.0,4.04674686]
[1625669773856,0.4279736,34564.0,34563.0,4.2873223]
[1625669775360,0.99630425,34566.0,34563.0,4.2873223]
[1625669775543,1.16223051,34567.0,34565.0,2.20895503]
[1625669775783,0.99622995,34566.0,34565.0,1.18943732]
[1625669776082,0.99622995,34566.0,34565.0,2.20910909]
[1625669776322,0.99622995,34566.0,34565.0,2.21411341]